[Event "*** Titled Tuesday Blitz"]
[Site "Chess.com"]
[Date "2021.02.09"]
[Round "11"]
[White "MF1966Idrisov"]
[Black "Kale36"]
[Result "1/2-1/2"]
[WhiteElo "2374"]
[BlackElo "2243"]
[TimeControl "180+1"]
[EndTime "12:08:45 PST"]
[Termination "Game drawn - insufficient material"]

1. Nf3 {[%clk 0:03:00.9]} 1... Nc6 {[%clk 0:02:59.4]} 2. d4 {[%clk 0:02:58.9]}
2... d6 {[%clk 0:02:59.2]} 3. h3 {[%clk 0:02:58.6]} 3... g6 {[%clk 0:02:58.5]}
4. b3 {[%clk 0:02:58.7]} 4... Bg7 {[%clk 0:02:58.8]} 5. Bb2 {[%clk 0:02:59.2]}
5... e5 {[%clk 0:02:55.5]} 6. dxe5 {[%clk 0:02:58.6]} 6... Nxe5 {[%clk
0:02:55.7]} 7. Nxe5 {[%clk 0:02:58.4]} 7... Bxe5 {[%clk 0:02:56.6]} 8. Bxe5
{[%clk 0:02:57.8]} 8... dxe5 {[%clk 0:02:57.5]} 9. Qxd8+ {[%clk 0:02:57.4]} 9...
Kxd8 {[%clk 0:02:58.4]} 10. c4 {[%clk 0:02:56.8]} 10... Ke7 {[%clk 0:02:53.1]}
11. Nc3 {[%clk 0:02:56]} 11... c6 {[%clk 0:02:51]} 12. O-O-O {[%clk 0:02:55.5]}
12... Be6 {[%clk 0:02:50.1]} 13. g4 {[%clk 0:02:55.4]} 13... Nf6 {[%clk
0:02:48]} 14. Bg2 {[%clk 0:02:54.8]} 14... Rad8 {[%clk 0:02:47]} 15. e3 {[%clk
0:02:48.2]} 15... Rxd1+ {[%clk 0:02:39.6]} 16. Rxd1 {[%clk 0:02:47.1]} 16... Rd8
{[%clk 0:02:40.2]} 17. Rxd8 {[%clk 0:02:46.6]} 17... Kxd8 {[%clk 0:02:41.1]} 18.
g5 {[%clk 0:02:38.7]} 18... Nd7 {[%clk 0:02:40.3]} 19. Ne4 {[%clk 0:02:38.3]}
19... Ke7 {[%clk 0:02:40.2]} 20. Kd2 {[%clk 0:02:32.9]} 20... Bf5 {[%clk
0:02:34.6]} 21. Ng3 {[%clk 0:02:31]} 21... Bb1 {[%clk 0:02:33]} 22. a3 {[%clk
0:02:30.4]} 22... f5 {[%clk 0:02:24.4]} 23. gxf6+ {[%clk 0:02:23.2]} 23... Nxf6
{[%clk 0:02:21.8]} 24. Kc3 {[%clk 0:02:22.1]} 24... Bf5 {[%clk 0:02:10]} 25. b4
{[%clk 0:02:11]} 25... Bd7 {[%clk 0:02:00.9]} 26. a4 {[%clk 0:02:05.6]} 26... h5
{[%clk 0:01:57.6]} 27. b5 {[%clk 0:01:57.1]} 27... h4 {[%clk 0:01:56.9]} 28. Ne2
{[%clk 0:01:51.8]} 28... Nh7 {[%clk 0:01:55.6]} 29. Ng1 {[%clk 0:01:50.8]} 29...
Ng5 {[%clk 0:01:54.9]} 30. Kd3 {[%clk 0:01:43.7]} 30... cxb5 {[%clk 0:01:50.5]}
31. axb5 {[%clk 0:01:42.7]} 31... b6 {[%clk 0:01:50.8]} 32. f4 {[%clk 0:01:40]}
32... exf4 {[%clk 0:01:48.3]} 33. exf4 {[%clk 0:01:39.9]} 33... Ne6 {[%clk
0:01:48.5]} 34. Ke4 {[%clk 0:01:33.8]} 34... Kf6 {[%clk 0:01:38.9]} 35. Nf3
{[%clk 0:01:28.9]} 35... Nc5+ {[%clk 0:01:33.6]} 36. Ke3 {[%clk 0:01:26.6]}
36... Be6 {[%clk 0:01:28.7]} 37. Bf1 {[%clk 0:01:26.2]} 37... a5 {[%clk
0:00:33.2]} 38. bxa6 {[%clk 0:01:24.4]} 38... Nxa6 {[%clk 0:00:34.1]} 39. Nxh4
{[%clk 0:01:22.9]} 39... Nb4 {[%clk 0:00:31.1]} 40. Nf3 {[%clk 0:01:18.2]} 40...
Nc2+ {[%clk 0:00:29.2]} 41. Kd2 {[%clk 0:01:17.4]} 41... Na3 {[%clk 0:00:28.5]}
42. Kc3 {[%clk 0:01:04.3]} 42... Nxc4 {[%clk 0:00:27.1]} 43. Bxc4 {[%clk
0:01:02.6]} 43... Bxh3 {[%clk 0:00:27.8]} 44. Nd4 {[%clk 0:00:59.6]} 44... g5
{[%clk 0:00:26.2]} 45. fxg5+ {[%clk 0:00:50.2]} 45... Kxg5 {[%clk 0:00:26.1]}
46. Kb4 {[%clk 0:00:50.3]} 46... Bd7 {[%clk 0:00:23.8]} 47. Bd5 {[%clk
0:00:46.3]} 47... Kf4 {[%clk 0:00:23.6]} 48. Ne2+ {[%clk 0:00:44.3]} 48... Ke5
{[%clk 0:00:23.6]} 49. Nc3 {[%clk 0:00:44.2]} 49... Kd4 {[%clk 0:00:23.6]} 50.
Bg2 {[%clk 0:00:43.1]} 50... Ke5 {[%clk 0:00:22.3]} 51. Kc4 {[%clk 0:00:42.1]}
51... Kd6 {[%clk 0:00:22.4]} 52. Kd4 {[%clk 0:00:40.9]} 52... Bc6 {[%clk
0:00:21.6]} 53. Bf1 {[%clk 0:00:39.8]} 53... b5 {[%clk 0:00:21.5]} 54. Na2
{[%clk 0:00:39]} 54... Bd5 {[%clk 0:00:20.6]} 55. Nc3 {[%clk 0:00:34.6]} 55...
Bc4 {[%clk 0:00:20.9]} 56. Ne4+ {[%clk 0:00:34.8]} 56... Kc6 {[%clk 0:00:19.8]}
57. Bg2 {[%clk 0:00:34.9]} 57... Kb6 {[%clk 0:00:20]} 58. Nd6 {[%clk 0:00:34.5]}
58... Ka5 {[%clk 0:00:20.4]} 59. Kc5 {[%clk 0:00:34.4]} 59... Ka4 {[%clk
0:00:20.4]} 60. Nc8 {[%clk 0:00:31.2]} 60... Be2 {[%clk 0:00:18.4]} 61. Nb6+
{[%clk 0:00:29.5]} 61... Ka3 {[%clk 0:00:18.8]} 62. Nd5 {[%clk 0:00:29.1]} 62...
Bc4 {[%clk 0:00:16.5]} 63. Nb4 {[%clk 0:00:28.6]} 63... Kb2 {[%clk 0:00:16.8]}
64. Bc6 {[%clk 0:00:27]} 64... Kc3 {[%clk 0:00:17.7]} 65. Na6 {[%clk 0:00:26.9]}
65... Kd2 {[%clk 0:00:18.6]} 66. Kb4 {[%clk 0:00:26.3]} 66... Ke3 {[%clk
0:00:17.7]} 67. Nc5 {[%clk 0:00:25.9]} 67... Kd4 {[%clk 0:00:17.8]} 68. Be8
{[%clk 0:00:25.7]} 68... Ke3 {[%clk 0:00:17.9]} 69. Bg6 {[%clk 0:00:25.4]} 69...
Kd4 {[%clk 0:00:18.8]} 70. Nd7 {[%clk 0:00:25.1]} 70... Ke3 {[%clk 0:00:19.7]}
71. Nb6 {[%clk 0:00:26]} 71... Kd4 {[%clk 0:00:20.5]} 72. Nxc4 {[%clk
0:00:25.4]} 72... bxc4 {[%clk 0:00:16.3]} 73. Bh7 {[%clk 0:00:23.2]} 73... c3
{[%clk 0:00:16.5]} 74. Bc2 {[%clk 0:00:22.7]} 74... Ke3 {[%clk 0:00:16.3]} 75.
Kxc3 {[%clk 0:00:23.6]} 1/2-1/2

[Event "*** Titled Tuesday Blitz"]
[Site "Chess.com"]
[Date "2021.02.09"]
[Round "11"]
[White "ShahMatKanal"]
[Black "imdvb6307"]
[Result "1-0"]
[WhiteElo "2483"]
[BlackElo "2372"]
[TimeControl "180+1"]
[EndTime "12:08:52 PST"]
[Termination "ShahMatKanal won by checkmate"]

1. d4 {[%clk 0:03:00.9]} 1... d5 {[%clk 0:02:59.2]} 2. c4 {[%clk 0:03:00.1]}
2... c6 {[%clk 0:02:59.2]} 3. Nf3 {[%clk 0:02:57.1]} 3... Nf6 {[%clk 0:02:59.3]}
4. e3 {[%clk 0:02:54.5]} 4... Bg4 {[%clk 0:02:58.4]} 5. h3 {[%clk 0:02:41.7]}
5... Bxf3 {[%clk 0:02:57.5]} 6. Qxf3 {[%clk 0:02:41.7]} 6... e6 {[%clk
0:02:57.9]} 7. Nc3 {[%clk 0:02:40]} 7... Nbd7 {[%clk 0:02:57.6]} 8. Qd1 {[%clk
0:02:29.2]} 8... Bb4 {[%clk 0:02:43.4]} 9. Bd2 {[%clk 0:02:25.1]} 9... O-O
{[%clk 0:02:40.3]} 10. a3 {[%clk 0:02:10.5]} 10... Ba5 {[%clk 0:02:38.5]} 11. b4
{[%clk 0:02:01.8]} 11... Bc7 {[%clk 0:02:38.2]} 12. f4 {[%clk 0:02:02.1]} 12...
a5 {[%clk 0:02:27.5]} 13. c5 {[%clk 0:01:54.3]} 13... b6 {[%clk 0:02:20.4]} 14.
Bd3 {[%clk 0:01:46.3]} 14... axb4 {[%clk 0:02:13.9]} 15. axb4 {[%clk 0:01:46.1]}
15... bxc5 {[%clk 0:02:06.7]} 16. bxc5 {[%clk 0:01:45.4]} 16... Rxa1 {[%clk
0:02:05.6]} 17. Qxa1 {[%clk 0:01:44.9]} 17... Qa8 {[%clk 0:02:04.8]} 18. Ke2
{[%clk 0:01:36.7]} 18... Ba5 {[%clk 0:01:53]} 19. Rb1 {[%clk 0:01:29.2]} 19...
Bxc3 {[%clk 0:01:48.7]} 20. Bxc3 {[%clk 0:01:07]} 20... Qxa1 {[%clk 0:01:41.3]}
21. Rxa1 {[%clk 0:01:06.9]} 21... Rc8 {[%clk 0:01:38.8]} 22. Ra7 {[%clk
0:01:02.1]} 22... Nb8 {[%clk 0:01:36.5]} 23. f5 {[%clk 0:00:54.6]} 23... Nfd7
{[%clk 0:01:34.8]} 24. fxe6 {[%clk 0:00:45.5]} 24... fxe6 {[%clk 0:01:34.2]} 25.
e4 {[%clk 0:00:46]} 25... Nf6 {[%clk 0:00:54.8]} 26. e5 {[%clk 0:00:32.8]} 26...
Nfd7 {[%clk 0:00:52]} 27. Bd2 {[%clk 0:00:23.2]} 27... h6 {[%clk 0:00:36.5]} 28.
Ba5 {[%clk 0:00:23.1]} 28... Kf7 {[%clk 0:00:33.6]} 29. Bc7 {[%clk 0:00:21.9]}
29... Rxc7 {[%clk 0:00:26.6]} 30. Rxc7 {[%clk 0:00:21.7]} 30... Ke7 {[%clk
0:00:26]} 31. Rb7 {[%clk 0:00:20.5]} 31... Kd8 {[%clk 0:00:25.8]} 32. Bg6 {[%clk
0:00:19.3]} 32... Kc8 {[%clk 0:00:25.3]} 33. Rb4 {[%clk 0:00:17.7]} 33... Nf8
{[%clk 0:00:24.5]} 34. Bf7 {[%clk 0:00:16.9]} 34... Na6 {[%clk 0:00:19.7]} 35.
Rb6 {[%clk 0:00:16.6]} 35... Nb8 {[%clk 0:00:18.6]} 36. Kf3 {[%clk 0:00:15.3]}
36... Kc7 {[%clk 0:00:18.5]} 37. Kf4 {[%clk 0:00:14.5]} 37... Nbd7 {[%clk
0:00:18.6]} 38. Ra6 {[%clk 0:00:14]} 38... Kb7 {[%clk 0:00:16.4]} 39. Ra2 {[%clk
0:00:13.6]} 39... Nb8 {[%clk 0:00:16.5]} 40. Rb2+ {[%clk 0:00:12.9]} 40... Kc7
{[%clk 0:00:16.4]} 41. h4 {[%clk 0:00:13.8]} 41... Na6 {[%clk 0:00:15.2]} 42. g4
{[%clk 0:00:12.7]} 42... Nb8 {[%clk 0:00:15.2]} 43. g5 {[%clk 0:00:13.1]} 43...
hxg5+ {[%clk 0:00:14.8]} 44. hxg5 {[%clk 0:00:13.3]} 44... Kc8 {[%clk
0:00:14.7]} 45. Rh2 {[%clk 0:00:12.8]} 45... Kd8 {[%clk 0:00:13.6]} 46. g6
{[%clk 0:00:11.4]} 46... Ke7 {[%clk 0:00:13.6]} 47. Kg5 {[%clk 0:00:11.7]} 47...
Na6 {[%clk 0:00:11.9]} 48. Rh7 {[%clk 0:00:11.5]} 48... Nc7 {[%clk 0:00:10]} 49.
Rxg7 {[%clk 0:00:11.5]} 49... Nb5 {[%clk 0:00:10]} 50. Bg8+ {[%clk 0:00:10]}
50... Kd8 {[%clk 0:00:09.2]} 51. Rf7 {[%clk 0:00:09.6]} 51... Nxg6 {[%clk
0:00:09.3]} 52. Kxg6 {[%clk 0:00:08.7]} 52... Nxd4 {[%clk 0:00:09.3]} 53. Ra7
{[%clk 0:00:07.4]} 53... Kc8 {[%clk 0:00:09.3]} 54. Kf6 {[%clk 0:00:06.9]} 54...
Kb8 {[%clk 0:00:09.4]} 55. Re7 {[%clk 0:00:06.2]} 55... Kc8 {[%clk 0:00:09.5]}
56. Bxe6+ {[%clk 0:00:06]} 56... Kd8 {[%clk 0:00:08.8]} 57. Rd7+ {[%clk
0:00:05.9]} 57... Ke8 {[%clk 0:00:09.1]} 58. Bg4 {[%clk 0:00:05.4]} 58... Nb3
{[%clk 0:00:08.5]} 59. e6 {[%clk 0:00:04.8]} 59... Nxc5 {[%clk 0:00:08.1]} 60.
Re7+ {[%clk 0:00:04.9]} 60... Kd8 {[%clk 0:00:06.2]} 61. Ra7 {[%clk 0:00:04.8]}
61... Ne4+ {[%clk 0:00:05.9]} 62. Ke5 {[%clk 0:00:05.1]} 62... Ke8 {[%clk
0:00:05.1]} 63. Bh5+ {[%clk 0:00:05]} 63... Kf8 {[%clk 0:00:04.7]} 64. e7+
{[%clk 0:00:05.4]} 64... Kg7 {[%clk 0:00:04.4]} 65. e8=Q+ {[%clk 0:00:05.9]}
65... Kh6 {[%clk 0:00:05]} 66. Qg6# {[%clk 0:00:06.2]} 1-0

[Event "*** Titled Tuesday Blitz"]
[Site "Chess.com"]
[Date "2021.02.09"]
[Round "11"]
[White "Alexander_Zubov"]
[Black "AlexTriapishko"]
[Result "1/2-1/2"]
[WhiteElo "2971"]
[BlackElo "2862"]
[TimeControl "180+1"]
[EndTime "12:09:00 PST"]
[Termination "Game drawn - insufficient material"]

1. d4 {[%clk 0:03:00.9]} 1... Nf6 {[%clk 0:02:59.8]} 2. c4 {[%clk 0:03:00.6]}
2... e6 {[%clk 0:03:00.3]} 3. Nf3 {[%clk 0:02:59.5]} 3... d5 {[%clk 0:03:00]} 4.
Nc3 {[%clk 0:02:58.6]} 4... Bb4 {[%clk 0:02:59]} 5. cxd5 {[%clk 0:02:58]} 5...
exd5 {[%clk 0:02:59.2]} 6. Bg5 {[%clk 0:02:57.9]} 6... O-O {[%clk 0:02:50.7]} 7.
Rc1 {[%clk 0:02:55.1]} 7... Bf5 {[%clk 0:02:45.7]} 8. Qb3 {[%clk 0:02:50.3]}
8... c5 {[%clk 0:02:38.3]} 9. dxc5 {[%clk 0:02:48.1]} 9... Nc6 {[%clk
0:02:36.8]} 10. Bxf6 {[%clk 0:02:22.9]} 10... Qxf6 {[%clk 0:02:34.2]} 11. Qxd5
{[%clk 0:02:18.6]} 11... Rad8 {[%clk 0:01:37.4]} 12. Qc4 {[%clk 0:02:10.6]}
12... Be6 {[%clk 0:01:32.4]} 13. Qh4 {[%clk 0:02:07.8]} 13... Qxh4 {[%clk
0:01:15.6]} 14. Nxh4 {[%clk 0:02:07.8]} 14... Bxa2 {[%clk 0:01:15.1]} 15. e3
{[%clk 0:01:56.4]} 15... Bb3 {[%clk 0:01:05.1]} 16. Nf3 {[%clk 0:01:53.5]} 16...
Bxc5 {[%clk 0:01:00.8]} 17. Nd2 {[%clk 0:01:53.2]} 17... Be6 {[%clk 0:00:57.7]}
18. Nde4 {[%clk 0:01:49.7]} 18... Bb4 {[%clk 0:00:56.5]} 19. Be2 {[%clk
0:01:49.4]} 19... h6 {[%clk 0:00:49.2]} 20. f4 {[%clk 0:01:43.4]} 20... Rfe8
{[%clk 0:00:44]} 21. Bf3 {[%clk 0:01:31.4]} 21... f5 {[%clk 0:00:32.2]} 22. Ng3
{[%clk 0:01:30.2]} 22... g6 {[%clk 0:00:29.2]} 23. Rd1 {[%clk 0:01:07.3]} 23...
Rxd1+ {[%clk 0:00:21.3]} 24. Kxd1 {[%clk 0:01:05.7]} 24... Rd8+ {[%clk
0:00:13.4]} 25. Kc2 {[%clk 0:01:03]} 25... Bc5 {[%clk 0:00:13.7]} 26. Re1 {[%clk
0:00:41.7]} 26... Nb4+ {[%clk 0:00:13.2]} 27. Kb1 {[%clk 0:00:42]} 27... Rd2
{[%clk 0:00:08.8]} 28. Re2 {[%clk 0:00:42.1]} 28... Rxe2 {[%clk 0:00:07.6]} 29.
Ngxe2 {[%clk 0:00:43]} 29... Bxe3 {[%clk 0:00:04.2]} 30. Bxb7 {[%clk 0:00:42.6]}
30... Kg7 {[%clk 0:00:04.9]} 31. g3 {[%clk 0:00:39.7]} 31... Bc4 {[%clk
0:00:05]} 32. Bf3 {[%clk 0:00:38.7]} 32... Bd3+ {[%clk 0:00:05.1]} 33. Ka1
{[%clk 0:00:39]} 33... g5 {[%clk 0:00:05.4]} 34. fxg5 {[%clk 0:00:38.2]} 34...
hxg5 {[%clk 0:00:06.3]} 35. h3 {[%clk 0:00:38.3]} 35... Kg6 {[%clk 0:00:05.9]}
36. b3 {[%clk 0:00:37.4]} 36... Nc2+ {[%clk 0:00:04.9]} 37. Kb2 {[%clk
0:00:37.6]} 37... Nd4 {[%clk 0:00:05.8]} 38. Nxd4 {[%clk 0:00:34.9]} 38... Bxd4
{[%clk 0:00:06.7]} 39. b4 {[%clk 0:00:34.9]} 39... f4 {[%clk 0:00:05]} 40. gxf4
{[%clk 0:00:33.9]} 40... gxf4 {[%clk 0:00:05.9]} 41. Kb3 {[%clk 0:00:33.2]}
41... Kg5 {[%clk 0:00:06.5]} 42. Ne2 {[%clk 0:00:30.6]} 42... Be5 {[%clk
0:00:05.2]} 43. Ng1 {[%clk 0:00:25.5]} 43... Kh4 {[%clk 0:00:04.6]} 44. Bg4
{[%clk 0:00:26.1]} 44... Kg3 {[%clk 0:00:04.5]} 45. Nf3 {[%clk 0:00:26.5]} 45...
Bf6 {[%clk 0:00:04.9]} 46. Nd2 {[%clk 0:00:26.3]} 46... Bg6 {[%clk 0:00:03.3]}
47. Kc4 {[%clk 0:00:25.6]} 47... Kf2 {[%clk 0:00:03.5]} 48. Kd5 {[%clk
0:00:23.7]} 48... Ke3 {[%clk 0:00:04.1]} 49. Nc4+ {[%clk 0:00:23.8]} 49... Kf2
{[%clk 0:00:03.7]} 50. Ne5 {[%clk 0:00:24.1]} 50... Bxe5 {[%clk 0:00:03.8]} 51.
Kxe5 {[%clk 0:00:24.9]} 51... Ke3 {[%clk 0:00:03.9]} 52. Kd6 {[%clk 0:00:17]}
52... Bd3 {[%clk 0:00:03.8]} 53. Kc6 {[%clk 0:00:15]} 53... Be2 {[%clk
0:00:03.9]} 54. Be6 {[%clk 0:00:03.3]} 54... f3 {[%clk 0:00:04]} 55. h4 {[%clk
0:00:03.9]} 55... f2 {[%clk 0:00:04.3]} 56. Bh3 {[%clk 0:00:03.9]} 56... Bg4
{[%clk 0:00:02.7]} 57. Bf1 {[%clk 0:00:04]} 57... Kf4 {[%clk 0:00:02.4]} 58. Kc7
{[%clk 0:00:03.5]} 58... Kg3 {[%clk 0:00:02.3]} 59. h5 {[%clk 0:00:04]} 59...
Bxh5 {[%clk 0:00:02.3]} 60. Kb7 {[%clk 0:00:04.9]} 60... Kh2 {[%clk 0:00:01.9]}
61. Kxa7 {[%clk 0:00:05.1]} 61... Kg1 {[%clk 0:00:02.5]} 62. Bd3 {[%clk
0:00:05.4]} 62... Bg4 {[%clk 0:00:02.6]} 63. b5 {[%clk 0:00:05.5]} 63... Bh3
{[%clk 0:00:02.3]} 64. b6 {[%clk 0:00:05.2]} 64... Bf1 {[%clk 0:00:03.2]} 65.
Bxf1 {[%clk 0:00:04.5]} 65... Kxf1 {[%clk 0:00:03.5]} 66. b7 {[%clk 0:00:05.4]}
66... Kg1 {[%clk 0:00:04.2]} 67. b8=Q {[%clk 0:00:06.3]} 67... f1=Q {[%clk
0:00:05.1]} 68. Qb6+ {[%clk 0:00:06.2]} 68... Qf2 {[%clk 0:00:05.4]} 69. Qxf2+
{[%clk 0:00:06.8]} 69... Kxf2 {[%clk 0:00:06.3]} 1/2-1/2

[Event "*** Titled Tuesday Blitz"]
[Site "Chess.com"]
[Date "2021.02.09"]
[Round "11"]
[White "OriTaichman"]
[Black "olksuna"]
[Result "0-1"]
[WhiteElo "2538"]
[BlackElo "2681"]
[TimeControl "180+1"]
[EndTime "12:09:04 PST"]
[Termination "olksuna won by checkmate"]

1. e4 {[%clk 0:03:00.9]} 1... c5 {[%clk 0:02:59.5]} 2. Nf3 {[%clk 0:02:58]} 2...
e6 {[%clk 0:03:00]} 3. b3 {[%clk 0:02:57.4]} 3... a6 {[%clk 0:02:57.6]} 4. Bb2
{[%clk 0:02:55.8]} 4... d5 {[%clk 0:02:55.6]} 5. exd5 {[%clk 0:02:53.7]} 5...
exd5 {[%clk 0:02:56.5]} 6. Bd3 {[%clk 0:02:39.8]} 6... Qe7+ {[%clk 0:02:46.6]}
7. Qe2 {[%clk 0:02:17.6]} 7... Qxe2+ {[%clk 0:02:44.4]} 8. Kxe2 {[%clk
0:02:18.5]} 8... f6 {[%clk 0:02:29.7]} 9. Re1 {[%clk 0:02:14]} 9... Bd6 {[%clk
0:02:29.5]} 10. Kf1+ {[%clk 0:01:55.1]} 10... Kf7 {[%clk 0:02:28.7]} 11. Nc3
{[%clk 0:01:51.9]} 11... Ne7 {[%clk 0:02:24.6]} 12. Nxd5 {[%clk 0:01:20.9]}
12... Nxd5 {[%clk 0:02:24]} 13. Bc4 {[%clk 0:01:21.2]} 13... Be6 {[%clk
0:02:24.3]} 14. Rxe6 {[%clk 0:01:21.6]} 14... Kxe6 {[%clk 0:02:24.3]} 15. Re1+
{[%clk 0:01:21.7]} 15... Kd7 {[%clk 0:02:20.6]} 16. Bxd5 {[%clk 0:01:21.2]}
16... Nc6 {[%clk 0:02:21.3]} 17. d4 {[%clk 0:01:08.3]} 17... cxd4 {[%clk
0:02:12]} 18. Nxd4 {[%clk 0:01:03.2]} 18... Nxd4 {[%clk 0:02:10.7]} 19. Bxd4
{[%clk 0:01:02.2]} 19... Rhe8 {[%clk 0:02:10.6]} 20. Rxe8 {[%clk 0:00:59.1]}
20... Rxe8 {[%clk 0:02:09]} 21. Bxb7 {[%clk 0:00:58.5]} 21... a5 {[%clk
0:01:57]} 22. a4 {[%clk 0:00:48.1]} 22... Kc7 {[%clk 0:01:49.9]} 23. Bf3 {[%clk
0:00:45.6]} 23... Be5 {[%clk 0:01:42.9]} 24. Bc5 {[%clk 0:00:36]} 24... Bd6
{[%clk 0:01:38.7]} 25. Be3 {[%clk 0:00:35.4]} 25... Bb4 {[%clk 0:01:30.5]} 26.
Ke2 {[%clk 0:00:33.4]} 26... Bc5 {[%clk 0:01:30.2]} 27. c3 {[%clk 0:00:28.2]}
27... Kd6 {[%clk 0:01:22.7]} 28. Kd3 {[%clk 0:00:23.7]} 28... Bxe3 {[%clk
0:01:21]} 29. fxe3 {[%clk 0:00:24.6]} 29... Kc5 {[%clk 0:01:21.9]} 30. h4 {[%clk
0:00:20.3]} 30... g6 {[%clk 0:01:11.2]} 31. g3 {[%clk 0:00:18.7]} 31... g5
{[%clk 0:01:06.3]} 32. h5 {[%clk 0:00:17.5]} 32... f5 {[%clk 0:01:05.7]} 33. e4
{[%clk 0:00:16]} 33... f4 {[%clk 0:01:02.2]} 34. g4 {[%clk 0:00:15.6]} 34...
Rd8+ {[%clk 0:00:56]} 35. Kc2 {[%clk 0:00:15.9]} 35... Rd7 {[%clk 0:00:54.3]}
36. Be2 {[%clk 0:00:13.4]} 36... h6 {[%clk 0:00:40.5]} 37. Bf3 {[%clk 0:00:13]}
37... Rd6 {[%clk 0:00:40.9]} 38. Be2 {[%clk 0:00:13]} 38... Re6 {[%clk
0:00:40.8]} 39. Bf3 {[%clk 0:00:13.2]} 39... Rf6 {[%clk 0:00:41.4]} 40. Kd3
{[%clk 0:00:13.5]} 40... Rd6+ {[%clk 0:00:41]} 41. Kc2 {[%clk 0:00:13.4]} 41...
Rd8 {[%clk 0:00:41.1]} 42. Be2 {[%clk 0:00:12.9]} 42... Kb6 {[%clk 0:00:34]} 43.
Bf3 {[%clk 0:00:13.5]} 43... Rd7 {[%clk 0:00:31.5]} 44. b4 {[%clk 0:00:13.6]}
44... axb4 {[%clk 0:00:28.1]} 45. cxb4 {[%clk 0:00:14.5]} 45... Rc7+ {[%clk
0:00:23.9]} 46. Kd3 {[%clk 0:00:12.5]} 46... Rc1 {[%clk 0:00:21.8]} 47. e5
{[%clk 0:00:12.8]} 47... Re1 {[%clk 0:00:20.3]} 48. Be4 {[%clk 0:00:12.9]} 48...
Re3+ {[%clk 0:00:13.7]} 49. Kd4 {[%clk 0:00:13.2]} 49... Rb3 {[%clk 0:00:13.6]}
50. a5+ {[%clk 0:00:12.3]} 50... Kc7 {[%clk 0:00:12.7]} 51. Kc5 {[%clk
0:00:09.7]} 51... f3 {[%clk 0:00:12.4]} 52. b5 {[%clk 0:00:09.1]} 52... f2
{[%clk 0:00:11.6]} 53. Bg2 {[%clk 0:00:10]} 53... Rc3+ {[%clk 0:00:09.9]} 54.
Kb4 {[%clk 0:00:09.9]} 54... Rg3 {[%clk 0:00:08.8]} 55. b6+ {[%clk 0:00:10.6]}
55... Kb8 {[%clk 0:00:08.6]} 56. Bf1 {[%clk 0:00:10.4]} 56... Rxg4+ {[%clk
0:00:08.2]} 57. Kc5 {[%clk 0:00:10.1]} 57... Rg1 {[%clk 0:00:08.6]} 58. Bd3
{[%clk 0:00:08.5]} 58... f1=Q {[%clk 0:00:08.6]} 59. Bxf1 {[%clk 0:00:09.1]}
59... Rxf1 {[%clk 0:00:09.5]} 60. a6 {[%clk 0:00:08.9]} 60... Re1 {[%clk
0:00:08.8]} 61. Kd6 {[%clk 0:00:08.3]} 61... g4 {[%clk 0:00:08.8]} 62. a7+
{[%clk 0:00:07.1]} 62... Kb7 {[%clk 0:00:08.6]} 63. e6 {[%clk 0:00:07.6]} 63...
g3 {[%clk 0:00:08.5]} 64. e7 {[%clk 0:00:06.1]} 64... g2 {[%clk 0:00:08.2]} 65.
e8=Q {[%clk 0:00:05.9]} 65... Rxe8 {[%clk 0:00:07.6]} 66. a8=Q+ {[%clk
0:00:06.8]} 66... Rxa8 {[%clk 0:00:07.5]} 67. Ke6 {[%clk 0:00:06.8]} 67... Ra6
{[%clk 0:00:07.6]} 68. Kf7 {[%clk 0:00:07.7]} 68... Rxb6 {[%clk 0:00:08.4]} 69.
Kg7 {[%clk 0:00:08.3]} 69... g1=Q+ {[%clk 0:00:08.7]} 70. Kh7 {[%clk 0:00:09.2]}
70... Qg5 {[%clk 0:00:08.6]} 71. Kh8 {[%clk 0:00:10.1]} 71... Qe7 {[%clk
0:00:07.5]} 72. Kg8 {[%clk 0:00:10.4]} 72... Kc7 {[%clk 0:00:07.9]} 73. Kh8
{[%clk 0:00:11]} 73... Rb8# {[%clk 0:00:08.8]} 0-1